Cogmind - Beta 16 @@@ ROGUE MODE // 2025.12.28 @ 15:38:59 Player: Red Box Result: Destroyed by 68-9FW(R) with Subdweller Machine Gun Performance ------------- Evolutions (0) 0 Regions Visited (3) 600 Robots Destroyed (42) 210 Value Destroyed (1295) 1295 Prototype IDs (1) 20 Alien Tech Used (0) 0 Bonus (0) 0 TOTAL SCORE: 2125 Bonus ------- None Cogmind --------- Core Integrity 0/250 Matter 229/300 Energy 250/250 System Corruption 0% Temperature Cool (0) Movement Rolling (125) Ox3 Location -10/Subcaves Parts ------- > --- POWER (1) -------- Ion Engine > --- PROPULSION (2) --- Light Treads Wheel > --- UTILITY (2) ------ Improved Heat Sink Large Storage Unit > --- WEAPON (2) ------- Particle Gun Subdweller Machine Gun > --- INVENTORY (15) --- Light Nuclear Core Light Treads Light Treads Light Treads Subdweller Monowheel Improved Heat Sink Huge Storage Unit Large Battery (200) Splice Drone Bay (6/6) EM Pulse Gun Particle Gun Subdweller Laser Rocket Launcher Datajack Mining Claw Peak State ------------ > --- POWER ------------ Light Nuclear Core > --- PROPULSION ------- Light Treads Wheel > --- UTILITY ---------- Large Storage Unit Splice Drone Bay > --- WEAPON ----------- Medium Laser Medium Laser > --- INVENTORY -------- Ion Engine Light Treads Light Treads Light Treads Light Treads Wheel Compact Wheel Huge Storage Unit Large Battery EM Pulse Gun Particle Gun Grenade Launcher Grenade Launcher Datajack Mining Claw [Rating: 16] Favorites ----------- Power Light Ion Engine Engine Light Ion Engine Power Core Light Nuclear Core Propulsion Aluminum Leg Treads Light Treads Leg Aluminum Leg Wheel Wheel Utility Improved Heat Sink Device Improved Heat Sink Storage Large Storage Unit Weapon Medium Laser Energy Gun Medium Laser Ballistic Gun Subdweller Machine Gun Launcher Grenade Launcher Special Weapon Mining Laser Slashing Weapon Mining Claw Build | -11 -10 -10 -10 ------- Run | Yrd Mat Min Sub Slots Evolved . | . . . . Power . | . . . . Propulsion . | . . . . Utility . | . . . . Weapon . | . . . . Parts Attached 36 | 7 14 8 7 Power 4 | 1 2 1 . Engine 3 | 1 1 1 . Core 1 | . 1 . . Reactor . | . . . . Propulsion 11 | 2 4 2 3 Treads 4 | . 2 1 1 Leg 3 | 2 1 . . Wheel 4 | . 1 1 2 Hover . | . . . . Flight . | . . . . Utility 7 | 2 3 1 1 Device 3 | 1 1 1 . Storage 4 | 1 2 . 1 Processor . | . . . . Hackware . | . . . . Protection . | . . . . Artifact . | . . . . Weapon 14 | 2 5 4 3 Energy Gun 7 | 2 1 4 . Energy Cannon . | . . . . Ballistic Gun 1 | . . . 1 Ballistic Cannon . | . . . . Launcher 4 | . 2 . 2 Special Weapon 1 | . 1 . . Impact Weapon . | . . . . Slashing Weapon 1 | . 1 . . Piercing Weapon . | . . . . Special Melee Weapon . | . . . . Unidentified Prototypes 1 | . . 1 . Parts Lost 8 | . 2 3 3 Power 1 | . . 1 . Propulsion 2 | . 1 . 1 Utility 1 | . 1 . . Weapon 4 | . . 2 2 Highest Loss Streak 2 | . 2 2 1 To Critical Strikes . | . . . . Average Backups 13 | 5 12 14 14 Power 1 | . 1 . 1 Propulsion 4 | 3 4 4 3 Utility 2 | . . 3 4 Weapon 5 | 1 5 4 4 Tool/Special . | . . . . Unused Backups 8 | . . 1 7 Power 1 | . . . 1 Propulsion 2 | . . . 2 Utility 3 | . . 1 2 Weapon 1 | . . . 1 Tool/Special 1 | . . . 1 Average Slot Usage (%) 99 | . 99 100 99 Engine 9 | . 9 5 14 Core 4 | . 4 8 . Treads 7 | . 1 14 13 Leg 13 | . 24 . . Wheel 7 | . 1 14 14 Device 13 | . 13 14 14 Storage 14 | . 14 14 14 Energy Gun 23 | . 24 27 16 Ballistic Gun 1 | . . . 9 Special Weapon 1 | . 2 . . Peak Build Rating 16 | 9 12 16 14 Average Rating 11 | 6 10 13 12 On Entrance 8 | . 9 12 13 Avg Prop Armor Cover (%) 12 | . 13 12 12 Naked Turns . | . . . . Heaviest Build 93 | 12 31 32 93 Greatest Support 30 | 20 20 20 30 Greatest Overweight (x) 9 | . 3 3 9 Average Overweight (x) 1 | . . 1 3 Largest Inventory Capacity 25 | 8 15 15 25 Average Capacity 14 | 7 13 15 16 Most Carried 16 | 7 15 15 16 Average Carried 13 | 5 12 14 14 Final Capacity 15 | 8 15 15 15 Final Carried 15 | 7 15 15 15 Class Distribution -------------------- 68% | Mutant 31% | Scavenger-Mutant Dominant Class ---------------- Mutant | -10/Materials Scavenger-Mutant | -10/Mines Scavenger-Mutant | -10/Subcaves Resources | -11 -10 -10 -10 ----------- Run | Yrd Mat Min Sub Matter Collected 877 | 270 330 150 127 Remotely . | . . . . Salvage Created 1366 | 117 649 428 172 Parts 75 | 7 38 15 15 Haulers Intercepted 2 | . 2 . . Recyclers Shooed 2 | 2 . . . Parts Field Recycled . | . . . . Retrieved Matter . | . . . . Parts Self-Destructed . | . . . . Prevented . | . . . . Parts Restored . | . . . . Kills | -11 -10 -10 -10 ------- Run | Yrd Mat Min Sub Combat Hostiles Destroyed 33 | . 17 10 6 Guns 20 | . 12 6 2 AOE 11 | . 4 3 4 Classes Destroyed 8 | 2 5 . 1 Builder 2 | . 1 1 . Tunneler 1 | 1 . . . Hauler 2 | . 2 . . Recycler 1 | 1 . . . Watcher 3 | . 3 . . Swarmer 3 | . 3 . . Grunt 24 | . 14 10 . Subdweller 6 | . . . 6 Best Kill Streak 3 | 1 3 3 2 Combat Bots Only 3 | . 3 2 2 Max Kills in Single Turn 2 | 1 2 2 1 Gunslinging . | . . . . Exploded 2 | . 2 2 1 Melee . | . . . . Uniques/NPCs Destroyed . | . . . . Combat | -11 -10 -10 -10 -------- Run | Yrd Mat Min Sub Hostile Shots Fired 129 | . 70 37 22 Missed 47 | . 26 15 6 Hits 82 | . 44 22 16 Projectile 82 | . 44 22 16 Critical Strikes 2 | . 1 . 1 Damage Taken 1165 | . 557 277 331 Core 256 | . 124 61 71 Absorbed by Shields . | . . . . Regen/Repaired (Parts) 28 | . 28 . . Core Remaining (%) 100 | 100 . . . Volleys Fired 138 | 9 92 21 16 Largest 2 | 2 2 2 2 Hottest 130 | 90 100 130 130 Shots Fired 244 | 18 152 42 32 Gun 202 | 18 117 40 27 Cannon . | . . . . Launcher 13 | . 6 2 5 Special 29 | . 29 . . Kinetic 8 | . . . 8 Thermal 217 | 18 146 34 19 Explosive 13 | . 6 2 5 Electromagnetic 6 | . . 6 . Robot Hit Streak 24 | 7 14 10 24 Robot Miss Streak 4 | 2 4 2 2 Penetration Max . | . . . . Secondary Targets 2 | . 1 1 . Max Gunslinging Chain 1 | . 1 1 . Shots Hit Robots 150 | 14 79 33 24 Core Hits 65 | 3 37 16 9 Critical Kills . | . . . . Critical Parts Destroyed . | . . . . Critical Strikes 7 | 1 5 1 . Burn 7 | 1 5 1 . Melee Attacks 15 | . 3 3 9 Impact . | . . . . Slashing 15 | . 3 3 9 Piercing . | . . . . Sneak Attacks . | . . . . Combat Hostiles . | . . . . Follow-up Attacks . | . . . . Damage Inflicted 3029 | 170 1507 649 703 Guns 1884 | 164 956 449 315 Cannons . | . . . . Explosions 1139 | . 551 200 388 Melee . | . . . . Ramming 6 | 6 . . . Kinetic 73 | . . . 73 Thermal 1848 | 164 956 486 242 Explosive 1046 | . 551 107 388 Electromagnetic 56 | . . 56 . Impact . | . . . . Slashing . | . . . . Piercing . | . . . . Highest Corruption . | . . . . Average Corruption . | . . . . Corruption Purged . | . . . . Corruption Blocked . | . . . . Overload Shots . | . . . . Overflow Damage . | . . . . Projectiles . | . . . . Explosions . | . . . . Melee . | . . . . Knockbacks . | . . . . Impact . | . . . . Kinetic . | . . . . Secondary . | . . . . Self-Inflicted Damage 21 | . 21 . . Shots 2 | . 2 . . Rammed . | . . . . Targets Rammed 2 | 2 . . . Kicked 2 | 2 . . . Crushed . | . . . . Highest Temperature 210 | 120 151 210 . Average Temperature 46 | 48 43 50 . Received Heat Transfer 519 | . 294 162 63 Siege Activations . | . . . . Martial Activations . | . . . . Shielding Activations . | . . . . Robots Disrupted . | . . . . Combat Hostiles . | . . . . Robots Corrupted . | . . . . Combat Hostiles . | . . . . Parts Fried . | . . . . Impact Corruptions . | . . . . Robots Melted 3 | . 2 1 . Combat Hostiles 2 | . 1 1 . Parts Melted 12 | . 9 3 . Heat Transferred 5359 | 496 3135 1173 555 Parts Sabotaged . | . . . . Parts Stolen . | . . . . Parts Stripped . | . . . . Power Chain Reactions 1 | . . 1 . Alert | -11 -10 -10 -10 ------- Run | Yrd Mat Min Sub Maximum Alert Level 1 | . 1 . . Low Security (%) 95 | 100 92 100 . Level 1 4 | . 7 . . Level 2 . | . . . . Level 3 . | . . . . Level 4 . | . . . . Level 5 . | . . . . High Security . | . . . . Max Security . | . . . . Peak Influence 236 | 5 236 112 . Initial 38 | . . 38 . Average 73 | . 94 35 . Influence Increases 1016 | 10 716 290 . Destroy 0b10 Robot/C 540 | . 340 200 . Destroy 0b10 Robot/NC 45 | 10 30 5 . Destroy Leader 140 | . 90 50 . Successful Hack 53 | . 53 . . Select Force Hacks 60 | . 60 . . Disable Machine 45 | . 30 15 . Destroy Structure 73 | . 53 20 . Partial Spotted 15 | . 15 . . Lose Combat Pursuer 45 | . 45 . . Influence Decreases 1016 | 10 617 389 . Entered New Map 61 | . . 61 . Time Decay 905 | 10 597 298 . Lost Part 50 | . 20 30 . Squads Dispatched 6 | . 6 . . Investigation 5 | . 5 . . Extermination . | . . . . Reinforcement 1 | . 1 . . Assault . | . . . . Garrison . | . . . . Intercept . | . . . . Searches Triggered . | . . . . Construction Impeded . | . . . . Haulers Reinforced . | . . . . Active Scanning Responses . | . . . . Cargo Convoy Interrupts . | . . . . Stealth | -11 -10 -10 -10 --------- Run | Yrd Mat Min Sub Distress Signals 2 | . 2 . . Communications Jammed . | . . . . Distress Signals . | . . . . Times Spotted 51 | . 34 10 7 Peak Tracking Total 5 | . 5 2 2 Tactical Retreats 2 | . 2 . . Traps | -11 -10 -10 -10 ------- Run | Yrd Mat Min Sub Traps Triggered 4 | . 4 . . Indirectly . | . . . . Trap Hack Attempts . | . . . . Triggered . | . . . . Disarmed . | . . . . Reprogrammed . | . . . . Reused . | . . . . Traps Extracted . | . . . . Installed . | . . . . Triggered . | . . . . Machines | -11 -10 -10 -10 ---------- Run | Yrd Mat Min Sub Machines Disabled 3 | . 2 1 . Max in Single Turn 1 | . 1 1 . Machines Repaired . | . . . . Machines Dismantled . | . . . . Machines Sabotaged . | . . . . Overloaded Fab Kills . | . . . . Hacking | -11 -10 -10 -10 --------- Run | Yrd Mat Min Sub Machines Accessed 12 | . 10 1 1 Terminals 7 | . 7 . . Fabricators . | . . . . Repair Stations 1 | . 1 . . Recycling Units 2 | . 2 . . Scanalyzers . | . . . . Garrison Access . | . . . . Total Hacks 37 | . 35 1 1 Successful 26 | . 24 1 1 Failed 11 | . 11 . . Catastrophic 2 | . 2 . . Database Lockouts . | . . . . Manual 26 | . 26 . . Terminals 21 | . 21 . . Fabricators . | . . . . Repair Stations 3 | . 3 . . Recycling Units 11 | . 11 . . Scanalyzers . | . . . . Garrison Access . | . . . . Terminal Hacks 6 | . 4 1 1 Robot Analysis 2 | . 2 . . Open Door 2 | . . 1 1 Terminal Index 1 | . 1 . . Locate Traps 1 | . 1 . . Fabricator Hacks . | . . . . Repair Station Hacks 2 | . 2 . . Scan Component 1 | . 1 . . Repair 1 | . 1 . . Recycling Unit Hacks 2 | . 2 . . Retrieve Components 2 | . 2 . . Scanalyzer . | . . . . Garrison Access Hacks . | . . . . Unauthorized Hacks 16 | . 16 . . Terminals 9 | . 9 . . Assimilate 1 | . 1 . . Botnet 2 | . 2 . . Operators 1 | . 1 . . Skim 5 | . 5 . . Fabricators . | . . . . Repair Stations . | . . . . Recycling Units 7 | . 7 . . Reject 2 | . 2 . . Recyclers 1 | . 1 . . Mask 2 | . 2 . . Tunnel 2 | . 2 . . Scanalyzers . | . . . . Garrison Access . | . . . . Data Cores Recovered . | . . . . Used . | . . . . Hacking Detections 8 | . 8 . . Full Trace Events 2 | . 2 . . Feedback Events . | . . . . Feedback Blocked . | . . . . Robot Schematics Acquired . | . . . . Robots Built . | . . . . Authchips . | . . . . Time . | . . . . Total Robot Build Rating . | . . . . Part Schematics Acquired . | . . . . Parts Built . | . . . . Authchips . | . . . . Time . | . . . . Total Part Build Rating . | . . . . Part Studies Acquired . | . . . . Parts Repaired 1 | . 1 . . Time 38 | . 38 . . Parts Recycled . | . . . . Recycled Matter . | . . . . Retrieved Matter . | . . . . Retrieved Components 5 | . 5 . . Parts Scanalyzed . | . . . . Part Schematics Acquired . | . . . . Parts Damaged . | . . . . Bothacking | -11 -10 -10 -10 ------------ Run | Yrd Mat Min Sub Used RIF Installer . | . . . . Robots Hacked . | . . . . Non-combat . | . . . . Combat . | . . . . Robot Hacks Applied . | . . . . Relay Couplers Released . | . . . . Fabnet Peak Effective % . | . . . . Robots Rewired . | . . . . Allies Hacked . | . . . . Hacks Repelled . | . . . . Allies | -11 -10 -10 -10 -------- Run | Yrd Mat Min Sub Total Allies . | . . . . Largest Group . | . . . . Highest-Rated Group . | . . . . Highest-Rated Ally . | . . . . Total Orders . | . . . . Ally Attacks . | . . . . Total Damage . | . . . . Kills . | . . . . Allies Corrupted . | . . . . Allies Melted . | . . . . Intel | -11 -10 -10 -10 ------- Run | Yrd Mat Min Sub Active Infowar (turns) 400 | 54 346 . . Terrain 400 | 54 346 . . Robot Analysis Total 2 | . 2 . . Derelict Logs Recovered 3 | . . 2 1 Drone Launches . | . . . . Drone Recoveries . | . . . . Exploration | -11 -10 -10 -10 ------------- Run | Yrd Mat Min Sub Turns Passed 4185 | 110 2231 1005 839 Spaces Moved 2190 | 52 1018 626 494 Core 15 | 15 . . . Treads 127 | . . 127 . Legs 827 | 37 790 . . Wheels 1221 | . 228 499 494 Hover . | . . . . Flight . | . . . . Fastest Speed 50 | 50 95 110 107 Average Speed 143 | 99 154 140 130 Slowest Speed 240 | 120 190 240 215 Overloaded Moves . | . . . . Propulsion Burnouts . | . . . . Robots Hopped . | . . . . Potential Cave-ins . | . . . . Cave-ins Triggered . | . . . . Exploration Rate (%) 56 | 4 99 95 28 Regions Visited 3 Branch Regions 2 Pre-discovered Areas 4 | . 2 . 2 Known Exits Taken 1 | . . 1 . Unknown Exits Taken 2 | 1 1 . . Scrap Searched 1 | . . 1 . Spaces Dug 29 | . 27 2 . Terrain Destroyed 110 | . 53 31 26 Melee 4 | . 2 2 . Projectile 25 | . 25 . . AOE 81 | . 26 29 26 Terrain Rammed . | . . . . Walls Destroyed . | . . . . Machines Disabled . | . . . . Actions | -11 -10 -10 -10 --------- Run | Yrd Mat Min Sub Total 2884 | 88 1460 705 631 Wait 427 | 12 289 31 95 Move 2188 | 52 1017 625 494 Hop . | . . . . Pick Up 35 | 7 18 7 3 Fast Attach 11 | 7 2 2 . Attach 13 | . 7 3 3 Detach 2 | . 2 . . Swap 39 | . 21 7 11 Drop 15 | . 9 6 . Fire 138 | 9 92 21 16 Melee 15 | . 3 3 9 Ram . | . . . . Kick 1 | 1 . . . Crush . | . . . . Escape Stasis . | . . . . Rewire . | . . . . Trap . | . . . . Miscellaneous . | . . . . Route ------- -11/Scrapyard -10/Materials (discovered 6 exits: *Mat x3 / *Min x2 / *Sub) -10/Mines (discovered 3 exits: *Mat x2 / *Sub) -10/Subcaves (discovered 2 exits: Mat / [*Scr]) History --------- Turn | Location | Event 10 | -11/Scrapyard | Discovered new exit (range 16) 111 | -11/Scrapyard | Entered Materials 305 | -10/Materials | Build established: Mutant 335 | -10/Materials | Discovered new exit (range 4) 699 | -10/Materials | Discovered new exit (range 16) 800 | -10/Materials | Discovered new exit (range 16) 938 | -10/Materials | Discovered new exit (range 13) 1297 | -10/Materials | Discovered new exit (range 14) 1377 | -10/Materials | Discovered new exit (range 4) 1669 | -10/Materials | Learned location of 3 exits from Materials 1693 | -10/Materials | Learned Storage security intel 1706 | -10/Materials | Learned location of 3 exits from Materials 1713 | -10/Materials | Loaded intel: 1 repair station location 1714 | -10/Materials | Learned 2 Mines zone layouts 1723 | -10/Materials | Learned 4 Recycling zone layouts 1742 | -10/Materials | Learned 4 Subcaves zone layouts 1771 | -10/Materials | Learned Storage security intel 2051 | -10/Materials | Repaired Imp. Heat Sink 2342 | -10/Materials | Entered Mines 2343 | -10/Mines | Identified exit to Materials 2343 | -10/Mines | Identified exit to Subcaves 2356 | -10/Mines | Core integrity fell below 50% 2403 | -10/Mines | Found the Drone Emporium 2408 | -10/Mines | Found Prototype Device 2408 | -10/Mines | Identified Splice Drone Bay 2851 | -10/Mines | Received a Rocket Launcher from a helpful Derelict 3041 | -10/Mines | Build established: Scavenger-Mutant 3104 | -10/Mines | Learned Materials terminal intel 3126 | -10/Mines | Learned Materials security intel 3347 | -10/Mines | Entered Subcaves 3348 | -10/Subcaves | Approached by a straggling Scientist 3348 | -10/Subcaves | Identified exit to Materials 3349 | -10/Subcaves | Learned location of Mines (-8) 3435 | -10/Subcaves | Core integrity fell below 20% 3528 | -10/Subcaves | Ambushed by Subdwellers from Twisted Machinery 3868 | -10/Subcaves | A swath of the cavern ceiling suddenly collapsed 3978 | -10/Subcaves | Learned location of Zion (-7) 3978 | -10/Subcaves | Met a Zionite searching for "candidates" 4011 | -10/Subcaves | Scientist uncovered a shortcut to Scraptown 4186 | -10/Subcaves | Destroyed by 68-9FW(R) with Subdweller Machine Gun Last Messages --------------- down here, I feel that you could die at any moment. For your health and safety might I suggest a trip to Zion?" World map updated: -7/Zion. 04009_ Acquired 14 matter. 04010_ Acquired 7 matter. 04011_ OY-947(c): "Hah, right again, there it is!" 04012_ Acquired 7 matter. 04014_ OY-947(c) destroyed. 04050_ Subatomizers dissect the Wheel. 04084_ Particle Gun destroyed. 04085_ Subatomizers dissect the Wheel. 04107_ OZ-73A(R) destroyed. 04110_ Acquired 19 matter. 04112_ Acquired Sub. Laser. 04136_ FQ-DUV(R) destroyed. 04140_ 68-9FW(R) affixes Scrap Shield Fragment to Scrap Shield. 04179_ PZ-MIC(z) destroyed. 04184_ BW-GOS(z) destroyed. Map ----- +----------------------------------------------------+ | ?????????????????????????????????????????????????? | | ?????????????????????????????????????????????????? | | ?????????????????????????????????????????????????? | | ?????????????????????????????????????????????????? | | ?????????????????????????????????????????????????? | | ?????????????????????????????????????????????????? | | ?????????????????????????????????????????????????? | | ?????????????????????????????????????????????????? | | ?????????????????????????????????????????????????? | | ?????????????????????????????????????????????????? | | ?????????????????????????????????????????????????? | | ?????????????????????????????????????????????????? | | ????????????????????????????????????? ???????????? | | ???????????????????????????????????? ##?????????? | | ????????????????????????????????????? ##???? ? | | ????????????????????????????????????? ####? | | ????????????????????????????????????? ? # | | ????????????????????????????????????? ? # | | ?????????????????????????????????????# ? | | ????????????????????????????????????## ?? | | ????????????????????????????????????# ?? | | ????????????????????????????????????# ?? | | ????????????????????????????????????? #?? | | #?????????????????????######?????????# ### | | #####?????????????????# #????###### #? | | #??????????####???#= @ ###### # # ## | | ##????###?? #???#!% ## *! | | # #????# ### #####R#### &% | | ### ##????# ## !##### # ### ## | | ### #??### #?# ## # ## #?###?? # | | #### #??# ## ##?????? # # | | ## #### ## #### & ##?????##?# # | | ### ########## #??# #?## | | ??## ### #????## ##&& = ##### #??# | | ???######?## ##### ##???## #??##? | | ???????????#####???###???## #??##? | | ?????????????????????????# #### #?## ? | | ?????????????????????????#### >##?## ### ? | | ?????????????????????????####### #### ? | | ?????????????????????????#" "## #### ###### ? | | ?????????????????????????# ## ## #### ###?### ? | | ?????????????????????????#### ## ## ##??# ? | | ?????????????????????????###" ## # #??# ? | | ?????????????????????????# ## ### # ##??# ? | | ????????????????????????## " " #???# ? | | ????????????????????????# < ##### ? | | ????????????????????????## ? | | ????????????????????????## # ? | | ????????????????????????# ### ## ## #? | | ????????????????????????# ### ########### ##? | +----------------------------------------------------+ Best States ------------- Heat Dissipation 39 Energy Generation 14 Energy Capacity 250 Matter Stores 300 Matter Capacity 300 Sight Range 16 Terrain Scan Range 16 Terrain Scan Density 10 Evasion (%) 55 Recoil Reduction 1 Item Schematics ----------------- None Robot Schematics ------------------ None Fabricated ------------ Nothing Repaired ---------- Imp. Heat Sink | 30% | -10/Materials Studied --------- None Alien Tech Used ----------------- None Achievements -------------- None Challenges ------------ None Game ------ Seed DeflectorGravityBasin Manual? 0 Play Time 00:29:59 Cumulative 908.2 hours Start 2025.12.28 @ 14:58:19 End 2025.12.28 @ 15:38:59 Sessions 1 Manual Loads 0 Difficulty Rogue Special Mode None Game No. 566 Rogue 566 Adventurer 0 Explorer 0 Win Type - Total 3 Types 3/0/0/0/0/0/0/0/0/0 Lore% 81 Gallery% 74 Achievement% 59 Wizard Run 0 Options --------- Layout 1 ASCII 0 Keyboard 0 Movement Mouse Keybinds 0 Fullscreen 1 Font 20/SmallcapsGlow Map View 54x42 Zoom Use 0% Tactical HUD 1 Map Filters NONE Filters NONE Steam 1 RUN: ffb20e44-a4d5-4311-a0f9-69cc48905411